bitfinex-derivatives/quotes_ETHF0:USTF0_20250612
["timestamp","ask_amount","ask_price","bid_price","bid_amount"]
[1749699004677,1.27482279,2753.3,2753.2,0.7263]
[1749699005484,0.00362279,2753.3,2753.2,0.7263]
[1749699006884,3.21142279,2753.3,2753.2,0.7263]
[1749699007183,4.50982279,2753.3,2753.2,18.3923]
[1749699007581,1.30202279,2753.3,2753.2,18.3923]
[1749699008090,3.2078,2753.7,2753.3,0.72627]
[1749699008283,3.2078,2753.7,2753.6,0.72619]
[1749699008478,3.2078,2753.7,2753.6,23.31219]
[1749699008885,0.6015,2753.9,2753.8,0.72614]
[1749699010188,3.4982,2754.0,2753.9,0.72611]
[1749699010979,3.2078,2754.0,2753.9,23.30411]
[1749699011184,1.2819,2754.0,2753.9,0.72611]
[1749699011382,0.6332,2754.0,2753.9,23.30311]
[1749699011580,0.5896,2754.1,2754.0,0.72609]
[1749699012490,3.2078,2754.3,2754.2,0.72603]
[1749699014691,3.2078,2754.3,2754.2,23.29703]
[1749699015088,3.2078,2754.3,2754.1,0.72606]
[1749699015287,3.2078,2754.3,2754.2,18.37603]
[1749699017488,0.72605,2754.2,2753.8,21.968]
[1749699017691,3.2078,2754.0,2753.9,23.2731]
[1749699018193,1.81546,2753.7,2752.8,0.00545167]
[1749699018389,3.2078,2752.9,2752.8,0.00545167]
[1749699018585,4.66083392,2752.9,2752.8,5.63185167]
[1749699018786,3.2078,2752.9,2752.8,4.90545167]
[1749699018988,10.38719935,2752.9,2752.8,0.00545167]
[1749699019185,10.38719935,2752.9,2752.8,17.645]
[1749699019397,0.72641,2752.8,2752.6,0.72646]
[1749699019596,1.45301935,2752.7,2752.5,17.645]
[1749699019890,0.72642,2752.8,2752.6,0.72646]
[1749699020086,1.45321711,2752.7,2752.6,0.72646]
[1749699020687,3.2078,2752.9,2752.8,0.7264]
[1749699020889,4.6608569,2752.9,2752.8,0.7264]
[1749699021492,4.6608569,2752.9,2752.8,18.3714]
[1749699022094,0.72643,2752.7,2752.6,4.9]
[1749699022397,0.72643,2752.7,2752.5,18.37148]
[1749699022398,0.72644,2752.7,2752.5,18.37148]
[1749699022693,5.9456569,2752.6,2752.5,18.37048]
[1749699023992,5.9456569,2752.6,2752.4,4.90645167]
[1749699024298,1.4530569,2752.5,2752.4,23.27796167]
[1749699024494,2.1795369,2752.5,2752.4,22.55145167]
[1749699024692,2.1795369,2752.5,2752.4,0.00545167]
[1749699025087,1.4530569,2752.5,2752.4,0.73196167]
[1749699026095,2.1795369,2752.5,2752.4,0.00545167]
[1749699026292,2.7258569,2752.5,2752.4,0.73196167]
[1749699027502,2.7258569,2752.5,2752.4,0.00545167]
[1749699027700,2.7258569,2752.5,2752.4,0.73196167]
[1749699029195,3.4523369,2752.5,2752.4,17.64845167]
[1749699029695,8.4523369,2752.5,2752.4,0.00545167]
[1749699030192,7.7258569,2752.5,2752.4,0.73196167]
[1749699030394,2.7258569,2752.5,2752.4,0.73196167]
[1749699030594,1.2728,2752.5,2752.4,0.73196167]
[1749699031994,3.2078,2752.6,2752.5,0.72648]
[1749699032500,0.00545167,2753.0,2752.9,0.72638]
[1749699032794,0.00545167,2753.0,2752.9,23.27038]
[1749699033795,0.00545167,2753.0,2752.9,0.72638]
[1749699034001,0.00545167,2753.0,2752.9,23.26938]
[1749699034192,0.00545167,2753.0,2752.9,0.72638]
[1749699034599,0.00545167,2753.0,2752.9,23.26938]
[1749699034993,0.00545167,2753.0,2752.9,22.541]
[1749699035197,4.40265167,2753.0,2752.9,22.541]
[1749699035397,4.40265167,2753.0,2752.9,23.26738]
[1749699035398,1.19485167,2753.0,2752.9,23.26738]
[1749699035795,4.40265167,2753.0,2752.9,23.26738]
[1749699036698,0.00545167,2753.0,2752.9,23.26738]
[1749699037392,3.93961167,2753.0,2752.6,21.972]
[1749699037597,3.93961167,2753.0,2752.8,0.72639]
[1749699037890,1.2699,2752.9,2752.8,0.72639]
[1749699038294,1.2699,2752.9,2752.8,18.36239]
[1749699040505,3.21325167,2753.0,2752.9,0.72638]
[1749699041197,4.42705167,2753.0,2752.9,0.72638]
[1749699041394,1.21925167,2753.0,2752.9,0.72638]
[1749699041597,1.67e-06,2753.0,2752.9,0.72638]
[1749699041807,1.67e-06,2753.0,2752.9,2.58648]
[1749699043306,1.67e-06,2753.0,2752.9,1.35528]
[1749699043510,1.67e-06,2753.0,2752.9,23.88928]
[1749699045912,1.67e-06,2753.0,2752.9,28.88928]
[1749699047414,1.67e-06,2753.0,2752.9,32.09708]
[1749699047706,0.2905,2753.3,2753.2,0.7263]
[1749699047707,1e-05,2753.3,2753.2,0.7263]
[1749699047907,3.2078,2754.0,2753.9,0.72611]
[1749699048107,6.64816932,2754.0,2753.9,17.627]
[1749699049515,6.64816932,2754.0,2753.9,18.35311]
[1749699050713,6.64816932,2754.0,2753.9,17.627]
[1749699050909,0.72616,2753.8,2753.7,0.72616]
[1749699051110,1.45257932,2753.9,2753.7,22.509]
[1749699051411,3.44671932,2753.8,2753.7,22.509]
[1749699052213,3.44671932,2753.8,2753.7,23.23517]
[1749699052407,3.44671932,2753.8,2753.7,22.509]
[1749699053014,3.44671932,2753.8,2753.7,23.23517]
[1749699053308,1.45257932,2753.8,2753.7,23.23517]
[1749699054717,2.17871932,2753.8,2753.7,23.23517]
[1749699054909,2.72147932,2753.8,2753.7,23.23317]
[1749699055410,3.44761932,2753.8,2753.7,22.507]
[1749699055713,4.06811932,2753.8,2753.7,22.507]
[1749699056318,3.34206492,2753.8,2753.7,23.23317]
[1749699057221,0.72624,2753.5,2753.3,0.5898]
[1749699057419,3.2078,2753.4,2753.3,1.31607]
[1749699057619,3.2078,2753.4,2753.3,23.81907]
[1749699058117,3.93405,2753.4,2753.3,4.886]
[1749699058313,7.30331752,2753.4,2753.3,4.886]
[1749699058615,7.30331752,2753.4,2753.0,18.34234]
[1749699058616,0.72634,2753.1,2753.0,18.34234]
[1749699058811,3.93414,2753.1,2753.0,17.616]
[1749699059219,4.66073338,2753.1,2753.0,18.34235]
[1749699059420,3.2078,2753.1,2753.0,0.72635]
[1749699059716,5.38703568,2753.1,2753.0,18.34235]
[1749699059922,6.61953568,2753.1,2753.0,18.34235]
[1749699060414,0.72635,2753.0,2752.9,4.886]
[1749699060622,3.41175568,2753.0,2752.9,22.501]
[1749699060918,3.41175568,2753.0,2752.9,4.886]
[1749699061125,3.41175568,2753.0,2752.9,22.5]
[1749699062420,3.41175568,2753.0,2752.9,17.615]
[1749699063215,3.41195628,2753.0,2752.9,17.615]
[1749699064018,2.68560628,2753.0,2752.8,18.3404]
[1749699064215,2.17950628,2752.9,2752.8,17.614]
[1749699064419,3.46390628,2752.9,2752.8,17.614]
[1749699064820,3.46390628,2752.9,2752.8,18.3404]
[1749699064821,2.73750628,2752.9,2752.8,18.3404]
[1749699065019,3.46388628,2752.9,2752.8,18.3404]
[1749699065225,2.17948628,2752.9,2752.8,18.3404]
[1749699066417,1.45310628,2752.9,2752.8,18.3404]
[1749699066814,3.2078,2753.1,2753.0,0.72635]
[1749699067023,3.2078,2753.4,2753.3,0.72627]
[1749699067321,5.0223,2753.8,2753.7,0.72617]
[1749699067527,4.66041977,2753.8,2753.7,23.22417]
[1749699068722,5.38655977,2753.8,2753.7,22.498]
[1749699069026,6.68815977,2753.8,2753.7,22.498]
[1749699069727,6.68815977,2753.8,2753.7,23.22417]
[1749699069928,5.96201977,2753.8,2753.7,23.22417]
[1749699070226,4.66041977,2753.8,2753.7,23.22417]
[1749699072925,5.38655977,2753.8,2753.7,23.22417]
[1749699073129,5.38655977,2753.8,2753.7,4.887]
[1749699073326,0.72619,2753.6,2753.5,1.3754]
[1749699073526,3.2078,2753.8,2753.5,4.886]
[1749699073827,0.72619,2753.6,2753.5,4.886]
[1749699074028,2.17888493,2753.6,2753.5,4.886]
[1749699074223,2.17888493,2753.6,2753.5,22.49]
[1749699074618,3.39908493,2753.6,2753.5,22.49]
[1749699075023,3.39908493,2753.6,2753.5,23.21622]
[1749699075327,3.39908493,2753.6,2753.5,22.49]
[1749699076028,3.39908493,2753.6,2753.5,23.21622]
[1749699076228,3.39908493,2753.6,2753.5,22.49]
[1749699076431,3.39908493,2753.6,2753.5,23.21622]
[1749699076729,0.72622,2753.5,2753.4,17.601]
[1749699076930,0.72622,2753.5,2753.4,18.32725]
[1749699076931,3.8462,2753.5,2753.4,18.32725]
[1749699077133,4.57242,2753.5,2753.4,18.32725]
[1749699077332,4.57242,2753.5,2753.4,17.601]
[1749699077534,0.72625,2753.4,2753.3,4.87]
[1749699077733,3.38781871,2753.4,2753.3,4.87]
[1749699077927,1.45276871,2753.4,2753.3,5.59627]
[1749699078234,3.26844871,2753.4,2752.8,1.2079]
[1749699078424,3.26844871,2753.4,2752.9,23.19437]
[1749699078425,0.72637,2753.0,2752.9,23.19437]
[1749699078924,3.2078,2753.1,2753.0,0.72635]
[1749699079835,3.2078,2753.1,2753.0,1.93425]
[1749699081730,3.93405,2753.4,2753.2,0.72628]
[1749699081934,3.93405,2753.4,2753.3,4.87]
[1749699082229,1.45283155,2753.4,2753.3,5.59627]
[1749699082425,3.2078,2753.7,2753.6,0.72619]
[1749699082625,4.66045513,2753.7,2753.6,0.72619]
[1749699083430,3.2078,2753.7,2753.6,0.72619]
[1749699083827,3.2078,2753.7,2753.6,1.92919]
[1749699085431,3.2078,2754.0,2753.9,0.72611]
[1749699085733,3.2078,2754.0,2753.9,23.18911]
[1749699086634,3.2078,2754.4,2754.3,0.72598]
[1749699086835,4.66010855,2754.4,2754.3,5.59598]
[1749699087539,3.2078,2754.4,2754.3,5.59598]
[1749699087937,0.2904,2754.5,2754.4,0.72598]
[1749699088137,3.93369,2754.8,2754.6,0.72591]
[1749699088438,1.45215339,2754.7,2754.6,0.72591]
[1749699089334,0.72592,2754.7,2754.5,0.72594]
[1749699089541,1.221,2754.7,2754.6,0.72593]
[1749699089743,3.2078,2754.8,2754.7,0.7259]
[1749699089940,5.38582705,2754.8,2754.7,0.7259]
[1749699090241,4.65994705,2754.8,2754.6,0.72592]
[1749699090441,5.1547,2754.8,2754.4,17.59]
[1749699090736,3.2078,2754.8,2754.7,0.7259]
[1749699090940,3.2078,2754.8,2754.7,5.5949]
[1749699091145,0.6426,2755.4,2754.8,1.8147]
[1749699091445,0.6426,2755.4,2755.3,0.72575]
[1749699091739,0.2903,2755.6,2755.5,0.72569]
[1749699091935,0.2903,2755.6,2755.5,18.30669]
[1749699093648,0.72569,2755.5,2755.3,0.72574]
[1749699093945,1.01598,2755.6,2755.4,22.448]
[1749699094146,4.4336,2755.5,2755.4,0.72572]
[1749699094336,3.2078,2755.5,2755.4,23.17372]
[1749699094541,0.2903,2755.6,2755.5,0.72569]
[1749699094739,3.2078,2755.9,2755.8,0.72561]
[1749699094940,0.6386,2756.2,2756.1,0.72553]
[1749699095242,0.6386,2756.2,2756.1,18.30053]
[1749699095443,0.6386,2756.2,2756.1,17.575]
[1749699095644,2.57071,2756.2,2756.1,17.575]
[1749699095844,1.8452,2756.2,2756.1,18.30053]
[1749699096347,2.57071,2756.2,2756.0,0.72554]
[1749699096549,1.8452,2756.2,2756.1,23.16753]
[1749699097446,2.57071,2756.2,2756.1,22.442]
[1749699097646,1.8452,2756.2,2756.1,23.16753]
[1749699097847,3.2078,2756.3,2756.1,23.16752]
[1749699098048,0.72551,2756.2,2756.1,23.16752]
[1749699098346,1.96461,2756.2,2756.1,22.442]
[1749699098938,1.96461,2756.2,2756.1,22.436]
[1749699099346,1.96461,2756.2,2756.1,23.16153]
[1749699099543,3.2078,2756.3,2756.2,0.72551]
[1749699099739,3.93328,2756.3,2756.2,0.72551]
[1749699099947,3.2078,2756.3,2756.1,22.436]
[1749699100449,0.72551,2756.2,2756.1,22.436]
[1749699100648,1.96461,2756.2,2756.1,22.434]
[1749699100848,3.2078,2756.3,2756.1,22.434]
[1749699101050,0.72547,2756.4,2756.3,0.72548]
[1749699101343,0.72551,2756.2,2756.1,22.434]
[1749699101543,3.93331,2756.2,2756.1,22.434]
[1749699101943,3.93331,2756.2,2756.1,23.15953]
[1749699102138,3.2078,2756.2,2756.1,23.15653]
[1749699102344,1.1838,2756.4,2756.3,0.72548]
[1749699102843,1.90926,2756.4,2756.2,0.72549]
[1749699103048,1.1838,2756.4,2756.1,22.431]
[1749699103349,3.93331,2756.2,2756.1,22.431]
[1749699104152,3.93331,2756.2,2756.1,23.15653]
[1749699104348,3.93331,2756.2,2756.1,22.431]
[1749699104945,3.2078,2756.2,2756.1,22.431]
[1749699105144,3.93331,2756.2,2756.1,4.867]
[1749699105450,3.93331,2756.2,2756.1,22.428]
[1749699105655,0.7256,2755.9,2755.8,0.72561]
[1749699105948,0.7256,2755.9,2755.8,22.408]
[1749699106153,1.8659,2756.1,2755.8,22.408]
[1749699106350,1.8659,2756.1,2755.9,22.407]
[1749699106549,0.72556,2756.0,2755.9,4.849]
[1749699106751,3.39525606,2756.0,2755.9,22.407]
[1749699106951,1.45149606,2756.0,2755.9,23.13259]
[1749699107153,0.6477,2756.1,2756.0,0.72556]
[1749699107348,1.37323,2756.1,2756.0,0.72556]
[1749699107851,0.6477,2756.1,2756.0,0.72556]
[1749699108054,0.72556,2756.0,2755.9,23.13259]
[1749699108242,1.37325,2756.1,2756.0,0.72556]
[1749699108448,2.82466823,2756.1,2756.0,0.72556]
[1749699108748,1.37325,2756.1,2756.0,0.72556]
[1749699108953,0.72557,2756.0,2755.9,0.72558]
[1749699109156,0.6477,2756.1,2756.0,0.72556]
[1749699109457,2.82461621,2756.1,2756.0,0.72556]
[1749699109654,0.7256,2755.9,2755.8,0.72561]
[1749699109953,0.72558,2756.0,2755.9,0.72558]
[1749699110142,2.17699688,2756.0,2755.9,0.72558]
[1749699110853,1.45141688,2756.0,2755.9,0.72558]
[1749699111648,2.17697688,2756.0,2755.9,0.72558]
[1749699112150,1.45141688,2756.0,2755.9,0.72558]
[1749699112349,2.17697688,2756.0,2755.9,0.72558]
[1749699114153,1.45141688,2756.0,2755.9,0.72558]
[1749699115346,2.17697688,2756.0,2755.9,0.72558]
[1749699115650,1.45141688,2756.0,2755.9,0.72558]
[1749699116455,1.45141688,2756.0,2755.9,1.95628]
[1749699118056,1.45141688,2756.0,2755.9,0.72558]
[1749699118256,1.45141688,2756.0,2755.9,23.12158]
[1749699123362,2.1358677,2756.1,2756.0,0.72556]
[1749699123562,3.58708525,2756.1,2756.0,0.72556]
[1749699124256,3.58708525,2756.1,2756.0,18.26556]
[1749699124561,1.45121755,2756.1,2756.0,18.26556]
[1749699125362,1.45121755,2756.1,2756.0,4.849]
[1749699125559,2.17674755,2756.1,2756.0,23.11256]
[1749699125963,3.43344755,2756.1,2756.0,22.387]
[1749699126160,3.43344755,2756.1,2756.0,23.11256]
[1749699126458,3.43344755,2756.1,2756.0,22.387]
[1749699126855,3.43344755,2756.1,2756.0,22.384]
[1749699128857,3.43344755,2756.1,2755.6,21.95845167]
[1749699128858,0.72564,2755.7,2755.6,21.95845167]
[1749699129057,0.72564,2755.7,2755.6,0.00545167]
[1749699129058,5.38465755,2755.7,2755.6,0.00545167]
[1749699129652,4.65901755,2755.7,2755.6,0.73112167]
[1749699130157,1.45121755,2755.7,2755.6,0.73112167]
[1749699133867,0.2902,2756.2,2756.1,0.72553]
[1749699134062,0.2902,2756.2,2756.1,26.31133]
[1749699134656,2.1501996,2756.7,2756.6,0.7254]
[1749699134861,3.2078,2756.8,2756.6,22.377]
[1749699135057,3.2078,2756.8,2756.7,0.72538]
[1749699135364,3.2078,2757.2,2757.1,0.72527]
[1749699135666,1.821,2757.4,2757.3,0.72522]
[1749699137766,0.6387,2757.4,2757.3,0.72522]
[1749699137968,3.2078,2757.6,2757.5,0.72517]
[1749699138166,3.2078,2757.6,2757.5,23.07817]
[1749699138364,1.2247,2757.8,2757.7,0.72511]
[1749699138565,1.2551,2757.9,2757.7,0.7251]
[1749699138873,0.72513,2757.7,2757.2,0.6029]
[1749699139069,4.4325,2757.6,2757.4,0.72518]
[1749699139268,4.4325,2757.6,2757.2,0.6029]
[1749699139469,5.15764,2757.6,2757.5,22.351]
[1749699139670,4.4325,2757.6,2757.5,23.07617]
[1749699140671,1.2247,2757.6,2757.5,23.07617]
[1749699141073,1.94984,2757.6,2757.5,22.351]
[1749699141370,4.4325,2757.6,2757.5,23.07617]
[1749699141571,5.15764,2757.6,2757.5,22.351]
[1749699142165,5.15764,2757.6,2757.4,0.72518]
[1749699142364,5.15764,2757.6,2757.5,22.346]
[1749699143371,0.72517,2757.5,2757.4,4.829]
[1749699143577,1.96827,2757.5,2757.4,22.342]
[1749699144990,6.2431,2757.5,2756.9,21.94844139]
[1749699145191,3.2078,2757.2,2757.1,5.55427]
[1749699145787,3.2078,2757.6,2757.1,4.829]
[1749699145994,3.2078,2757.6,2757.5,0.72517]
[1749699146187,3.2078,2757.6,2757.5,23.06417]
[1749699146392,5.3835381,2757.6,2757.5,22.339]
[1749699146595,4.6583981,2757.6,2757.0,3.2078]
[1749699146783,3.2078,2757.2,2757.1,22.339]
[1749699147094,4.4214,2757.5,2757.4,0.72519]
[1749699147392,5.87208795,2757.5,2757.4,0.72519]
[1749699148493,5.87208795,2757.5,2757.1,22.339]
[1749699148694,4.4214,2757.5,2757.1,22.339]
[1749699148892,5.14658,2757.5,2757.4,0.72519]
[1749699149094,6.59729365,2757.5,2757.4,0.72519]
[1749699149989,6.59728365,2757.5,2757.4,0.72519]
[1749699150290,0.7252,2757.4,2757.3,0.7252]
[1749699150495,1.2509,2757.4,2757.3,0.7252]
[1749699151392,1.2509,2757.4,2757.2,0.72523]
[1749699151393,0.72523,2757.3,2757.2,0.72523]
[1749699151593,0.6198,2757.3,2757.2,0.72523]
[1749699152298,1.34502,2757.3,2757.2,0.72523]
[1749699152492,0.6198,2757.3,2757.2,0.72523]
[1749699152891,0.72528,2757.1,2757.0,0.72528]
[1749699153092,3.2078,2757.2,2757.1,0.72527]
[1749699153392,0.72527,2757.1,2757.0,22.331]
[1749699153593,2.52147,2757.1,2757.0,22.331]
[1749699154589,2.52147,2757.1,2757.0,4.829]
[1749699155089,0.7253,2757.0,2756.9,0.00544139]
[1749699155294,1.9105,2757.0,2756.9,0.73076139]
[1749699155496,1.9105,2757.0,2756.9,0.00544139]
[1749699157199,1.1852,2757.0,2756.9,0.73076139]
[1749699157396,0.611,2757.1,2757.0,0.7253]
[1749699157702,2.06189517,2757.1,2756.9,0.00544139]
[1749699157902,1.9055,2757.0,2756.9,0.00544139]
[1749699158999,1.9055,2757.0,2756.9,0.73076139]
[1749699159200,1.1802,2757.0,2756.9,0.73076139]
[1749699159396,0.611,2757.1,2757.0,0.7253]
[1749699159600,3.2078,2757.2,2757.1,0.72527]
[1749699159903,5.38388181,2757.2,2757.1,5.55427]
[1749699160106,4.65864181,2757.2,2757.1,5.55427]
[1749699160398,5.38388181,2757.2,2757.1,4.829]
[1749699160596,6.58438181,2757.2,2757.1,4.829]
[1749699161498,4.65864181,2757.2,2757.1,5.55427]
[1749699161699,3.2078,2757.2,2757.1,5.55427]
[1749699162904,4.65848696,2757.2,2757.1,5.55427]
[1749699163400,5.38373696,2757.2,2757.1,22.324]
[1749699163602,7.26003696,2757.2,2757.1,22.324]
[1749699164201,6.53478696,2757.2,2757.1,23.04927]
[1749699165305,7.26003696,2757.2,2757.1,23.04927]
[1749699165504,4.65848696,2757.2,2757.1,23.04927]
[1749699165899,4.65854389,2757.2,2757.1,23.04927]
[1749699167606,5.38378389,2757.2,2757.1,22.324]
[1749699168302,5.38378389,2757.2,2757.1,23.04927]
[1749699168303,4.65854389,2757.2,2757.1,23.04927]
[1749699168705,4.65854389,2757.2,2757.1,0.72527]
[1749699168905,4.65854389,2757.2,2757.1,23.02227]
[1749699170107,5.38378389,2757.2,2757.1,22.297]
[1749699170308,4.65854389,2757.2,2757.1,23.02227]
[1749699170912,5.38378389,2757.2,2757.1,23.02227]
[1749699171111,5.38378389,2757.2,2757.1,0.72527]
[1749699171316,5.38378389,2757.2,2757.1,23.01927]
[1749699171817,5.38378389,2757.2,2757.1,0.72527]
[1749699172018,5.38378389,2757.2,2757.1,23.01927]
[1749699173315,4.65854389,2757.2,2757.1,0.72527]
[1749699173511,6.57368389,2757.2,2757.1,23.01727]
[1749699173914,5.84844389,2757.2,2757.1,23.01727]
[1749699174315,4.65854389,2757.2,2757.1,23.01727]
[1749699174512,3.89798389,2757.2,2757.1,23.01727]
[1749699174708,0.29,2758.0,2757.8,0.72509]
[1749699174709,3.2078,2757.9,2757.8,0.72509]
[1749699174914,4.65826134,2757.9,2757.8,23.01609]
[1749699175719,1.45046134,2757.9,2757.8,23.01609]
[1749699176321,1.45046134,2757.9,2757.8,23.3063318]
[1749699176514,3.93276,2758.3,2758.2,0.72498]
[1749699176819,5.38296693,2758.3,2758.2,4.81]
[1749699177919,5.38296693,2758.3,2758.2,5.53498]
[1749699178218,5.38296693,2758.3,2758.2,4.81]
[1749699178814,5.38296693,2758.3,2758.2,5.53498]
[1749699179414,5.38296693,2758.3,2758.2,4.81]
[1749699179619,4.65800693,2758.3,2758.2,5.53498]
[1749699179818,5.38296693,2758.3,2758.2,4.81]
[1749699180319,4.65800693,2758.3,2758.2,5.53498]
[1749699180517,1.45020693,2758.3,2758.2,5.53498]
[1749699181219,2.17516693,2758.3,2758.2,5.53498]
[1749699181411,2.17516693,2758.3,2758.2,4.81]
[1749699182114,3.44456693,2758.3,2758.2,4.81]
[1749699182917,3.44456693,2758.3,2758.2,5.53498]
[1749699183614,2.7196797,2758.3,2758.2,5.53498]
[1749699183813,1.4502797,2758.3,2758.2,5.53498]
[1749699184712,2.1752397,2758.3,2758.2,5.53498]
[1749699184913,2.1752397,2758.3,2758.2,4.81]
[1749699185119,4.0013397,2758.3,2758.2,4.81]
[1749699185319,4.0013397,2758.3,2757.8,19.2982]
[1749699185320,3.2763797,2758.3,2757.8,0.6316]
[1749699185521,1.4502797,2758.2,2758.0,0.72502]
[1749699185819,1.4502797,2758.2,2758.1,0.72501]
[1749699186021,3.2078,2758.4,2758.3,0.72496]
[1749699186222,4.65804199,2758.4,2758.3,22.273]
[1749699186524,5.38297199,2758.4,2758.3,22.273]
[1749699186726,4.65804199,2758.4,2758.3,22.99796]
[1749699187618,4.65804199,2758.4,2758.1,0.634]
[1749699187822,1.45024199,2758.3,2758.2,22.99698]
[1749699188916,1.45024199,2758.3,2758.1,1.35898]
[1749699189126,1.45024199,2758.3,2758.1,4.809]
[1749699189127,2.17522199,2758.2,2758.1,4.809]
[1749699189315,3.44802199,2758.2,2758.1,22.99501]
[1749699189714,2.72304199,2758.2,2758.1,22.99501]
[1749699189917,1.45024199,2758.2,2758.1,22.99501]
[1749699190727,3.2078,2758.7,2758.4,0.72491]
[1749699191020,3.2078,2758.7,2758.1,22.27]
[1749699191021,1.4501368,2758.6,2758.5,5.5339]
[1749699191225,2.1750168,2758.6,2758.5,5.5339]
[1749699191422,3.4478168,2758.6,2758.5,22.267]
[1749699191823,3.4478168,2758.6,2758.5,22.9919]
[1749699192525,2.7229368,2758.6,2758.5,22.9919]
[1749699193423,3.4478168,2758.6,2758.5,22.9919]
[1749699193725,2.7229368,2758.6,2758.5,22.9919]
[1749699194321,3.4478168,2758.6,2758.5,22.267]
[1749699194627,0.72493,2758.4,2758.3,0.00544139]
[1749699194823,3.93273,2758.4,2758.3,22.26744139]
[1749699195123,5.3828668,2758.4,2758.3,22.26744139]
[1749699195527,1.4501368,2758.4,2758.3,22.99240139]
[1749699195833,0.72493,2758.4,2758.3,22.99240139]
[1749699196023,2.1750668,2758.4,2758.3,0.73040139]
[1749699196229,2.1750668,2758.4,2758.3,22.99040139]
[1749699197129,2.1750668,2758.4,2758.3,0.73040139]
[1749699197329,2.1750668,2758.4,2758.3,22.98940139]
[1749699197519,1.4501368,2758.4,2758.3,22.98940139]
[1749699197924,1.45007389,2758.4,2758.3,22.98940139]
[1749699198126,1.45007389,2758.4,2758.3,0.73040139]
[1749699198326,1.45007389,2758.4,2758.3,22.97040139]
[1749699199130,1.45007389,2758.4,2758.3,0.73040139]
[1749699199329,1.45007389,2758.4,2758.3,22.96940139]
[1749699199730,2.17500389,2758.4,2758.3,22.96940139]
[1749699200027,2.17500389,2758.4,2758.3,0.00544139]
[1749699200228,5.38280389,2758.4,2758.3,22.24244139]
[1749699200530,5.38280389,2758.4,2758.3,22.96740139]
[1749699200731,5.38280389,2758.4,2758.3,22.24244139]
[1749699201331,5.38280389,2758.4,2758.3,0.00544139]
[1749699201536,5.38280389,2758.4,2758.3,22.24244139]
[1749699203133,5.38280389,2758.4,2758.3,17.45044139]
[1749699204630,7.23750389,2758.4,2758.3,17.45044139]
[1749699205137,7.23750389,2758.4,2758.3,1.39e-06]
[1749699205339,17.65920389,2758.4,2758.3,1.39e-06]
[1749699205633,0.72517,2757.5,2757.4,17.442]
[1749699205825,5.38304389,2757.5,2757.4,17.442]
[1749699206029,4.65787389,2757.5,2757.4,18.16719]
[1749699207027,1.45007389,2757.5,2757.4,18.16719]
[1749699207230,1.45050707,2757.6,2757.4,17.442]
[1749699207436,0.29540711,2757.7,2757.6,0.72514]
[1749699207640,1.74583597,2757.7,2757.6,5.51514]
[1749699208738,0.00540711,2757.7,2757.6,8.72294]
[1749699210545,0.00540711,2757.7,2757.6,3.93294]
[1749699210740,0.00540711,2757.7,2757.6,26.15994]
[1749699212446,0.00540711,2757.7,2757.6,8.72294]
[1749699212649,0.00540711,2757.7,2757.6,26.15894]
[1749699213744,0.73051711,2757.7,2757.6,3.93294]
[1749699213945,2.18090657,2757.7,2757.6,26.15694]
[1749699214145,1.45579657,2757.7,2757.6,26.15694]
[1749699214441,1.45579657,2757.7,2757.6,17.434]
[1749699214642,1.45579657,2757.7,2757.6,18.15914]
[1749699215048,0.00540711,2757.7,2757.6,18.15914]
[1749699217551,1.45578171,2757.7,2757.6,22.94814]
[1749699222057,1.45578171,2757.7,2757.6,22.94314]
[1749699222657,0.00540711,2757.7,2757.6,22.94314]
[1749699226668,0.00540711,2757.7,2757.6,24.18984]
[1749699229963,0.00540711,2757.7,2757.6,6.76184]
[1749699230162,0.00540711,2757.7,2757.6,22.93514]
[1749699231454,0.00540711,2757.7,2757.6,22.93314]
[1749699232363,0.00540711,2757.7,2757.6,5.51514]
[1749699232664,0.00540711,2757.7,2757.6,4.79]
[1749699232963,0.72516,2757.6,2757.5,4.772]
[1749699233155,2.17555057,2757.6,2757.5,4.772]
[1749699233359,1.45039057,2757.6,2757.5,22.187]
[1749699233559,3.43943057,2757.6,2757.2,3.81564139]
[1749699233759,1.45039057,2757.5,2757.3,22.91121]
[1749699233963,2.71429057,2757.4,2757.3,0.72521]
[1749699234163,2.71429057,2757.4,2757.3,22.91121]
[1749699234565,2.71429057,2757.4,2757.3,0.72521]
[1749699234758,2.71429057,2757.4,2757.3,22.91121]
[1749699235366,1.45039057,2757.4,2757.3,22.91121]
[1749699235662,0.59880711,2757.7,2757.3,22.91121]
[1749699235663,0.59880711,2757.7,2757.3,22.186]
[1749699235863,1.77630711,2757.7,2757.6,0.72514]
[1749699236165,3.22677912,2757.7,2757.6,0.72514]
[1749699236363,0.72522,2757.4,2757.3,4.772]
[1749699236556,1.45047201,2757.6,2757.3,22.91022]
[1749699236866,2.62797201,2757.5,2757.3,22.91022]
[1749699237166,2.17566201,2757.4,2757.3,4.772]
[1749699237357,3.35316201,2757.4,2757.3,22.184]
[1749699237965,3.35316201,2757.4,2757.3,22.90922]
[1749699238168,2.62797201,2757.4,2757.3,22.90922]
[1749699238366,3.35316201,2757.4,2757.3,5.49722]
[1749699238562,3.35316201,2757.4,2757.3,22.183]
[1749699238768,3.64326201,2757.4,2757.3,22.183]
[1749699239369,2.91807201,2757.4,2757.3,22.90822]
[1749699239671,3.64326201,2757.4,2757.3,22.90822]
[1749699240168,0.72522,2757.3,2757.2,0.00544139]
[1749699240366,4.08379201,2757.3,2757.2,17.41544139]
[1749699241166,4.08379201,2757.3,2757.2,0.00544139]
[1749699241464,4.08379201,2757.3,2757.2,17.41444139]
[1749699241770,4.08379201,2757.3,2757.2,0.00544139]
[1749699243772,4.08379201,2757.3,2757.2,0.73068139]
[1749699244073,4.08379201,2757.3,2757.2,0.00544139]
[1749699245764,9.08379201,2757.3,2757.2,0.00544139]
[1749699246069,0.72532,2756.9,2756.8,17.407]